[Event "Early-Titled-Tuesday-Blitz-June-18-2024"]
[Site "Chess.com"]
[Date "2024.06.18"]
[Round "5"]
[White "RobertoJBM"]
[Black "maximnovik"]
[Result "0-1"]
[WhiteElo "2784"]
[BlackElo "2543"]
[TimeControl "180+1"]
[EndTime "8:56:42 PDT"]
[Termination "maximnovik won by resignation"]

1. d4 {[%clk 0:03:00.9]} 1... Nf6 {[%clk 0:02:59.7]} 2. Nf3 {[%clk 0:03:00.2]}
2... g6 {[%clk 0:02:59.9]} 3. b3 {[%clk 0:02:59.4]} 3... Bg7 {[%clk 0:02:59.6]}
4. Bb2 {[%clk 0:02:59.5]} 4... d5 {[%clk 0:02:54.1]} 5. e3 {[%clk 0:02:59.3]}
5... Ne4 {[%clk 0:02:54.2]} 6. Qc1 {[%clk 0:02:58.1]} 6... O-O {[%clk
0:02:52.5]} 7. Be2 {[%clk 0:02:57.6]} 7... c5 {[%clk 0:02:48.6]} 8. dxc5 {[%clk
0:02:57]} 8... Qa5+ {[%clk 0:02:47.9]} 9. Nbd2 {[%clk 0:02:55.4]} 9... Nd7
{[%clk 0:02:26.9]} 10. Bxg7 {[%clk 0:02:49.4]} 10... Kxg7 {[%clk 0:02:26.9]} 11.
Qb2+ {[%clk 0:02:49.8]} 11... Qc3 {[%clk 0:02:16.4]} 12. Qxc3+ {[%clk
0:02:46.2]} 12... Nxc3 {[%clk 0:02:16.3]} 13. Nb1 {[%clk 0:02:33.9]} 13... Nxb1
{[%clk 0:02:12.7]} 14. Rxb1 {[%clk 0:02:34.8]} 14... Nxc5 {[%clk 0:02:13.2]} 15.
O-O {[%clk 0:02:29.2]} 15... Ne4 {[%clk 0:02:07.5]} 16. Bd3 {[%clk 0:02:08.9]}
16... Nc3 {[%clk 0:02:06.5]} 17. Rb2 {[%clk 0:02:09.3]} 17... Bd7 {[%clk
0:01:53.9]} 18. Nd2 {[%clk 0:02:09.1]} 18... e5 {[%clk 0:01:49.5]} 19. Nb1
{[%clk 0:02:06]} 19... Rac8 {[%clk 0:01:49.4]} 20. Nxc3 {[%clk 0:01:54.7]} 20...
Rxc3 {[%clk 0:01:49]} 21. Rd1 {[%clk 0:01:54.5]} 21... Rfc8 {[%clk 0:01:45.2]}
22. f3 {[%clk 0:01:50.3]} 22... Be6 {[%clk 0:01:42.6]} 23. Kf2 {[%clk
0:01:43.1]} 23... f5 {[%clk 0:01:39.3]} 24. Rd2 {[%clk 0:01:42.9]} 24... e4
{[%clk 0:01:35.4]} 25. fxe4 {[%clk 0:01:28]} 25... dxe4 {[%clk 0:01:35.1]} 26.
Bf1 {[%clk 0:01:21.5]} 26... Kf6 {[%clk 0:01:34.2]} 27. g3 {[%clk 0:01:17.2]}
27... Ke5 {[%clk 0:01:33.7]} 28. Be2 {[%clk 0:01:16.1]} 28... g5 {[%clk
0:01:27.9]} 29. Bd1 {[%clk 0:01:14.4]} 29... f4 {[%clk 0:01:22.7]} 30. exf4+
{[%clk 0:01:12.7]} 30... gxf4 {[%clk 0:01:22.9]} 31. gxf4+ {[%clk 0:01:11.7]}
31... Kxf4 {[%clk 0:01:23.3]} 32. Rd6 {[%clk 0:01:10.6]} 32... Bf5 {[%clk
0:01:18.1]} 33. Ke1 {[%clk 0:01:01.3]} 33... e3 {[%clk 0:01:10.6]} 34. b4 {[%clk
0:00:46.6]} 34... Rg8 {[%clk 0:01:07.8]} 35. Rd4+ {[%clk 0:00:42.3]} 35... Ke5
{[%clk 0:01:07.7]} 36. Rh4 {[%clk 0:00:39.7]} 36... Rg1+ {[%clk 0:01:06.2]} 37.
Ke2 {[%clk 0:00:40.1]} 37... Bg4+ {[%clk 0:01:05.5]} 38. Rxg4 {[%clk 0:00:38]}
38... Rxg4 {[%clk 0:01:05.2]} 0-1

[Event "Early-Titled-Tuesday-Blitz-June-18-2024"]
[Site "Chess.com"]
[Date "2024.06.18"]
[Round "5"]
[White "Resignify"]
[Black "RamonManon0g"]
[Result "0-1"]
[WhiteElo "2305"]
[BlackElo "2452"]
[TimeControl "180+1"]
[EndTime "8:56:44 PDT"]
[Termination "RamonManon0g won on time"]

1. e4 {[%clk 0:03:00.9]} 1... c5 {[%clk 0:02:59.3]} 2. Nc3 {[%clk 0:03:00.4]}
2... d6 {[%clk 0:02:58.9]} 3. g3 {[%clk 0:03:00.5]} 3... Nc6 {[%clk 0:02:58.7]}
4. Bg2 {[%clk 0:03:00.4]} 4... Nf6 {[%clk 0:02:59.3]} 5. d3 {[%clk 0:03:00.7]}
5... g6 {[%clk 0:03:00.2]} 6. f4 {[%clk 0:03:00.7]} 6... Bg7 {[%clk 0:03:00.9]}
7. Nf3 {[%clk 0:03:01]} 7... O-O {[%clk 0:03:01.8]} 8. O-O {[%clk 0:03:00.9]}
8... Rb8 {[%clk 0:03:02.3]} 9. a3 {[%clk 0:03:00.5]} 9... b5 {[%clk 0:03:02.3]}
10. h3 {[%clk 0:03:00.6]} 10... a5 {[%clk 0:03:01.3]} 11. Rb1 {[%clk 0:03:00.5]}
11... b4 {[%clk 0:03:01.2]} 12. axb4 {[%clk 0:03:01.4]} 12... axb4 {[%clk
0:03:01.9]} 13. Ne2 {[%clk 0:03:01.7]} 13... Bb7 {[%clk 0:02:59.4]} 14. g4
{[%clk 0:03:01.5]} 14... h5 {[%clk 0:02:58.8]} 15. g5 {[%clk 0:02:49.4]} 15...
Ne8 {[%clk 0:02:55.4]} 16. f5 {[%clk 0:02:46.7]} 16... Ne5 {[%clk 0:02:48.3]}
17. Nf4 {[%clk 0:02:30.5]} 17... Nxf3+ {[%clk 0:02:43.4]} 18. Qxf3 {[%clk
0:02:26.7]} 18... Bd4+ {[%clk 0:01:52.4]} 19. Kh1 {[%clk 0:02:22.3]} 19... Ng7
{[%clk 0:01:52.6]} 20. Bd2 {[%clk 0:00:39.6]} 20... Nxf5 {[%clk 0:01:49.9]} 21.
c3 {[%clk 0:00:09.7]} 21... Be5 {[%clk 0:01:39.1]} 22. Qf2 {[%clk 0:00:02.5]}
22... Ng7 {[%clk 0:01:34.9]} 23. d4 {[%clk 0:00:02.3]} 23... cxd4 {[%clk
0:01:25.5]} 24. cxd4 {[%clk 0:00:03.2]} 24... Bxf4 {[%clk 0:01:25.1]} 25. Qxf4
{[%clk 0:00:03.8]} 25... Ba6 {[%clk 0:01:23.5]} 26. Rf2 {[%clk 0:00:03.3]} 26...
Ne6 {[%clk 0:01:15.9]} 27. Qe3 {[%clk 0:00:02.5]} 27... Qb6 {[%clk 0:01:16.2]}
28. d5 {[%clk 0:00:01.1]} 28... Qxe3 {[%clk 0:01:14.8]} 29. Bxe3 {[%clk
0:00:01.7]} 29... Nc5 {[%clk 0:01:11.9]} 0-1

[Event "Early-Titled-Tuesday-Blitz-June-18-2024"]
[Site "Chess.com"]
[Date "2024.06.18"]
[Round "5"]
[White "Gryffindorac8"]
[Black "MaestroCheck"]
[Result "1-0"]
[WhiteElo "2486"]
[BlackElo "2629"]
[TimeControl "180+1"]
[EndTime "8:56:46 PDT"]
[Termination "Gryffindorac8 won on time"]

1. d4 {[%clk 0:03:00.9]} 1... Nf6 {[%clk 0:02:57.8]} 2. c4 {[%clk 0:03:00.6]}
2... e6 {[%clk 0:02:54.6]} 3. Nf3 {[%clk 0:02:59.7]} 3... d5 {[%clk 0:02:55]} 4.
g3 {[%clk 0:02:59.6]} 4... dxc4 {[%clk 0:02:45.4]} 5. Bg2 {[%clk 0:02:58.5]}
5... c6 {[%clk 0:02:44.8]} 6. O-O {[%clk 0:02:57.1]} 6... b5 {[%clk 0:02:45.4]}
7. Ne5 {[%clk 0:02:56.2]} 7... Bb7 {[%clk 0:02:34.8]} 8. a4 {[%clk 0:02:54.6]}
8... a6 {[%clk 0:02:33.5]} 9. b3 {[%clk 0:02:54.3]} 9... cxb3 {[%clk 0:02:32]}
10. Qxb3 {[%clk 0:02:54.2]} 10... Bd6 {[%clk 0:02:31.9]} 11. Nc3 {[%clk
0:02:24.8]} 11... b4 {[%clk 0:02:21.9]} 12. Ne4 {[%clk 0:02:20.1]} 12... Nxe4
{[%clk 0:02:17]} 13. Bxe4 {[%clk 0:02:18.8]} 13... O-O {[%clk 0:02:16.1]} 14. a5
{[%clk 0:02:13.3]} 14... Nd7 {[%clk 0:02:00.4]} 15. Nc4 {[%clk 0:01:45.3]} 15...
Be7 {[%clk 0:01:54.3]} 16. Bd2 {[%clk 0:01:42.8]} 16... Nf6 {[%clk 0:01:48.1]}
17. Bg2 {[%clk 0:01:32.7]} 17... Qxd4 {[%clk 0:01:25.5]} 18. Bxb4 {[%clk
0:01:25.5]} 18... Bxb4 {[%clk 0:00:56.8]} 19. Qxb4 {[%clk 0:01:26.4]} 19... Rab8
{[%clk 0:00:57.1]} 20. Rfd1 {[%clk 0:01:09.8]} 20... Qg4 {[%clk 0:00:35.6]} 21.
Bf3 {[%clk 0:00:52.7]} 1-0

[Event "Early-Titled-Tuesday-Blitz-June-18-2024"]
[Site "Chess.com"]
[Date "2024.06.18"]
[Round "5"]
[White "ninguno46"]
[Black "jamengrand"]
[Result "1-0"]
[WhiteElo "2564"]
[BlackElo "2302"]
[TimeControl "180+1"]
[EndTime "8:56:51 PDT"]
[Termination "ninguno46 won by resignation"]

1. e4 {[%clk 0:03:00.9]} 1... e5 {[%clk 0:02:58.6]} 2. Nf3 {[%clk 0:02:59.9]}
2... Nc6 {[%clk 0:02:59]} 3. Nc3 {[%clk 0:03:00.4]} 3... Nf6 {[%clk 0:02:58.8]}
4. Bb5 {[%clk 0:03:00.8]} 4... Nd4 {[%clk 0:02:58.2]} 5. Bc4 {[%clk 0:02:59.7]}
5... c6 {[%clk 0:02:55.8]} 6. Nxe5 {[%clk 0:02:56.5]} 6... Bc5 {[%clk
0:02:55.9]} 7. O-O {[%clk 0:02:53.9]} 7... O-O {[%clk 0:02:53]} 8. Nd3 {[%clk
0:02:18.5]} 8... Bb6 {[%clk 0:02:52.1]} 9. e5 {[%clk 0:02:13.2]} 9... d5 {[%clk
0:02:50.2]} 10. Bb3 {[%clk 0:02:10.3]} 10... Ng4 {[%clk 0:02:36.2]} 11. h3
{[%clk 0:02:02.1]} 11... Qh4 {[%clk 0:02:36]} 12. Kh1 {[%clk 0:01:27]} 12... Re8
{[%clk 0:02:27]} 13. Ne2 {[%clk 0:01:12.6]} 13... Nxe5 {[%clk 0:02:17.7]} 14.
Nxe5 {[%clk 0:01:06.4]} 14... Rxe5 {[%clk 0:02:06.7]} 15. Ng1 {[%clk 0:01:04]}
15... Nf5 {[%clk 0:01:24.4]} 16. Nf3 {[%clk 0:00:54.5]} 16... Qh6 {[%clk
0:00:21.6]} 17. d4 {[%clk 0:00:51.5]} 17... Ne3 {[%clk 0:00:12.7]} 18. Nxe5
{[%clk 0:00:38]} 18... Bxh3 {[%clk 0:00:12.3]} 19. Bxe3 {[%clk 0:00:36.3]} 19...
Bxg2+ {[%clk 0:00:12]} 20. Kxg2 {[%clk 0:00:36.4]} 20... Qg6+ {[%clk 0:00:11.5]}
21. Nxg6 {[%clk 0:00:36.3]} 1-0

[Event "Early-Titled-Tuesday-Blitz-June-18-2024"]
[Site "Chess.com"]
[Date "2024.06.18"]
[Round "5"]
[White "Senn71"]
[Black "GlavkonVVS"]
[Result "0-1"]
[WhiteElo "2341"]
[BlackElo "2534"]
[TimeControl "180+1"]
[EndTime "8:56:53 PDT"]
[Termination "GlavkonVVS won by resignation"]

1. e4 {[%clk 0:03:00.9]} 1... Nf6 {[%clk 0:02:59.7]} 2. e5 {[%clk 0:02:59.9]}
2... Nd5 {[%clk 0:02:59.8]} 3. d4 {[%clk 0:02:59.3]} 3... d6 {[%clk 0:02:59.6]}
4. Nf3 {[%clk 0:02:59.3]} 4... Bg4 {[%clk 0:02:59.2]} 5. h3 {[%clk 0:02:58.3]}
5... Bh5 {[%clk 0:02:58.8]} 6. Be2 {[%clk 0:02:51.8]} 6... e6 {[%clk 0:02:58.8]}
7. O-O {[%clk 0:02:49.1]} 7... Be7 {[%clk 0:02:58.8]} 8. exd6 {[%clk 0:02:40.9]}
8... cxd6 {[%clk 0:02:58.6]} 9. c4 {[%clk 0:02:41.1]} 9... Nb6 {[%clk
0:02:58.5]} 10. Nc3 {[%clk 0:02:38.6]} 10... O-O {[%clk 0:02:58.1]} 11. a4
{[%clk 0:02:26.1]} 11... a5 {[%clk 0:02:52.2]} 12. b3 {[%clk 0:02:09.3]} 12...
d5 {[%clk 0:02:51]} 13. c5 {[%clk 0:02:07.4]} 13... Bxf3 {[%clk 0:02:50.9]} 14.
Bxf3 {[%clk 0:02:04.6]} 14... Nc8 {[%clk 0:02:51.4]} 15. Bf4 {[%clk 0:01:55.1]}
15... Nc6 {[%clk 0:02:50.8]} 16. Qd2 {[%clk 0:01:51.7]} 16... b6 {[%clk
0:02:42.1]} 17. cxb6 {[%clk 0:01:41.4]} 17... Qxb6 {[%clk 0:02:41.1]} 18. Nb5
{[%clk 0:01:42]} 18... Bf6 {[%clk 0:02:35.1]} 19. Be3 {[%clk 0:01:40.6]} 19...
N8a7 {[%clk 0:02:32.2]} 20. Nxa7 {[%clk 0:01:34.7]} 20... Rxa7 {[%clk
0:02:31.6]} 21. Rab1 {[%clk 0:01:19.9]} 21... Bxd4 {[%clk 0:02:23.8]} 22. Rfe1
{[%clk 0:01:02.7]} 22... Rb8 {[%clk 0:02:15.8]} 23. Bd1 {[%clk 0:01:00.4]} 23...
Rc7 {[%clk 0:02:09]} 24. Rc1 {[%clk 0:00:57.3]} 24... Bxe3 {[%clk 0:02:07.1]}
25. Rxe3 {[%clk 0:00:56.4]} 25... Rbc8 {[%clk 0:02:06]} 26. Rg3 {[%clk
0:00:55.1]} 26... Ne7 {[%clk 0:01:58.7]} 27. Rxc7 {[%clk 0:00:52]} 27... Qxc7
{[%clk 0:01:58.6]} 28. Qg5 {[%clk 0:00:47.5]} 28... Nf5 {[%clk 0:01:48.9]} 29.
Rd3 {[%clk 0:00:40.7]} 29... Qc1 {[%clk 0:01:45.1]} 30. Qh5 {[%clk 0:00:37.2]}
30... g6 {[%clk 0:01:42.7]} 31. Qe2 {[%clk 0:00:35.2]} 31... Qa1 {[%clk
0:01:35.7]} 32. Kh2 {[%clk 0:00:34.6]} 32... Rc1 {[%clk 0:01:34.9]} 33. g4
{[%clk 0:00:34.2]} 33... Nd6 {[%clk 0:01:31.3]} 34. f3 {[%clk 0:00:23]} 34...
Qf6 {[%clk 0:01:24.4]} 35. Qd2 {[%clk 0:00:21.6]} 35... Rb1 {[%clk 0:01:13.3]}
36. Qxa5 {[%clk 0:00:19.3]} 36... Qf4+ {[%clk 0:01:12.2]} 37. Kh1 {[%clk
0:00:17.4]} 37... Rb2 {[%clk 0:01:11.5]} 0-1

[Event "Early-Titled-Tuesday-Blitz-June-18-2024"]
[Site "Chess.com"]
[Date "2024.06.18"]
[Round "5"]
[White "Adar_07"]
[Black "GOGIEFF"]
[Result "0-1"]
[WhiteElo "2806"]
[BlackElo "3020"]
[TimeControl "180+1"]
[EndTime "8:56:58 PDT"]
[Termination "GOGIEFF won by resignation"]

1. e4 {[%clk 0:03:00.9]} 1... c5 {[%clk 0:02:59.9]} 2. Nf3 {[%clk 0:03:00.5]}
2... d6 {[%clk 0:03:00.4]} 3. d4 {[%clk 0:03:00.4]} 3... cxd4 {[%clk 0:03:00.5]}
4. Nxd4 {[%clk 0:03:01.3]} 4... Nf6 {[%clk 0:03:00.7]} 5. Nc3 {[%clk 0:03:01.5]}
5... a6 {[%clk 0:03:01.2]} 6. Bg5 {[%clk 0:03:01.3]} 6... Nbd7 {[%clk
0:03:00.9]} 7. Bc4 {[%clk 0:03:01.7]} 7... Qb6 {[%clk 0:03:01.2]} 8. Bb3 {[%clk
0:03:01]} 8... e6 {[%clk 0:03:00.6]} 9. Qd2 {[%clk 0:03:00.7]} 9... Nc5 {[%clk
0:02:59.2]} 10. Bxf6 {[%clk 0:03:00.8]} 10... gxf6 {[%clk 0:02:59.8]} 11. O-O-O
{[%clk 0:03:01.3]} 11... Bd7 {[%clk 0:02:57.4]} 12. f4 {[%clk 0:03:01.1]} 12...
h5 {[%clk 0:02:57.1]} 13. Kb1 {[%clk 0:03:00.9]} 13... Bh6 {[%clk 0:02:48.4]}
14. Rhf1 {[%clk 0:02:46.7]} 14... O-O-O {[%clk 0:02:46.9]} 15. Qe2 {[%clk
0:02:36.3]} 15... Rde8 {[%clk 0:02:39.3]} 16. f5 {[%clk 0:02:21.5]} 16... Qd8
{[%clk 0:02:33.4]} 17. Qxh5 {[%clk 0:02:03.2]} 17... Bf4 {[%clk 0:02:20.7]} 18.
Qf3 {[%clk 0:01:35.4]} 18... Be5 {[%clk 0:02:20.6]} 19. h3 {[%clk 0:01:35.5]}
19... Kb8 {[%clk 0:02:16.1]} 20. Rh1 {[%clk 0:01:11]} 20... Qb6 {[%clk
0:02:13.7]} 21. fxe6 {[%clk 0:01:05.2]} 21... fxe6 {[%clk 0:02:12.8]} 22. Nde2
{[%clk 0:01:05.2]} 22... Bc6 {[%clk 0:02:09.9]} 23. h4 {[%clk 0:01:02.9]} 23...
f5 {[%clk 0:02:08.2]} 24. Qe3 {[%clk 0:00:55]} 24... fxe4 {[%clk 0:02:06.2]} 25.
h5 {[%clk 0:00:51.4]} 25... Na4 {[%clk 0:01:54.3]} 26. Qxb6 {[%clk 0:00:29]}
26... Nxb6 {[%clk 0:01:55.2]} 27. g4 {[%clk 0:00:28.9]} 27... d5 {[%clk
0:01:51.9]} 28. g5 {[%clk 0:00:28.7]} 28... Reg8 {[%clk 0:01:49.6]} 29. g6
{[%clk 0:00:28.4]} 29... Nd7 {[%clk 0:01:50.2]} 30. Nxe4 {[%clk 0:00:20.3]}
30... dxe4 {[%clk 0:01:46.7]} 31. Bxe6 {[%clk 0:00:21.2]} 31... e3 {[%clk
0:01:39.6]} 32. Bxg8 {[%clk 0:00:15.4]} 32... Bxh1 {[%clk 0:01:38.1]} 33. Bd5
{[%clk 0:00:02.6]} 33... Bxd5 {[%clk 0:01:33.2]} 34. Rxd5 {[%clk 0:00:03.5]}
34... Rxh5 {[%clk 0:01:33.5]} 35. c3 {[%clk 0:00:03.7]} 35... Kc7 {[%clk
0:01:29.4]} 36. g7 {[%clk 0:00:03.7]} 36... Rh1+ {[%clk 0:01:29.2]} 37. Kc2
{[%clk 0:00:03.7]} 37... Bxg7 {[%clk 0:01:29.8]} 38. Nf4 {[%clk 0:00:03.6]}
38... Be5 {[%clk 0:01:28.7]} 39. Nd3 {[%clk 0:00:03.4]} 39... Rh2+ {[%clk
0:01:28.2]} 40. Kd1 {[%clk 0:00:02]} 40... e2+ {[%clk 0:01:28.5]} 41. Kd2 {[%clk
0:00:01.6]} 41... Bg3 {[%clk 0:01:28.8]} 42. Nc5 {[%clk 0:00:01.1]} 0-1

[Event "Early-Titled-Tuesday-Blitz-June-18-2024"]
[Site "Chess.com"]
[Date "2024.06.18"]
[Round "5"]
[White "HansOnTwitch"]
[Black "kleinebeer98"]
[Result "0-1"]
[WhiteElo "3156"]
[BlackElo "2965"]
[TimeControl "180+1"]
[EndTime "8:57:00 PDT"]
[Termination "kleinebeer98 won by resignation"]

1. e4 {[%clk 0:03:00.9]} 1... e5 {[%clk 0:02:59.9]} 2. Nf3 {[%clk 0:03:00.2]}
2... Nc6 {[%clk 0:03:00.6]} 3. Bc4 {[%clk 0:02:59.7]} 3... Nf6 {[%clk
0:03:00.2]} 4. d3 {[%clk 0:02:59.8]} 4... h6 {[%clk 0:03:00.2]} 5. a4 {[%clk
0:02:57.9]} 5... d6 {[%clk 0:02:56.9]} 6. Nc3 {[%clk 0:02:57.1]} 6... g5 {[%clk
0:02:57]} 7. h3 {[%clk 0:02:56]} 7... Bg7 {[%clk 0:02:49.7]} 8. Be3 {[%clk
0:02:55]} 8... Qe7 {[%clk 0:02:38.3]} 9. a5 {[%clk 0:02:52.6]} 9... a6 {[%clk
0:02:38.4]} 10. g4 {[%clk 0:02:46.7]} 10... Be6 {[%clk 0:02:34.6]} 11. Qd2
{[%clk 0:02:45.5]} 11... O-O-O {[%clk 0:02:32]} 12. Nd5 {[%clk 0:02:38.5]} 12...
Bxd5 {[%clk 0:02:32.2]} 13. exd5 {[%clk 0:02:38.5]} 13... Nd4 {[%clk 0:02:32.7]}
14. Bxd4 {[%clk 0:02:27.9]} 14... exd4+ {[%clk 0:02:33.6]} 15. Kf1 {[%clk
0:02:26.2]} 15... Nd7 {[%clk 0:02:24]} 16. Kg2 {[%clk 0:02:14.2]} 16... f5
{[%clk 0:02:13.6]} 17. Rae1 {[%clk 0:02:11]} 17... Qf7 {[%clk 0:02:04.6]} 18.
Re6 {[%clk 0:01:37.8]} 18... fxg4 {[%clk 0:01:54.7]} 19. hxg4 {[%clk 0:01:37.6]}
19... Rdf8 {[%clk 0:01:51]} 20. Qe2 {[%clk 0:01:35.6]} 20... Ne5 {[%clk
0:01:45.2]} 21. Nxd4 {[%clk 0:00:49.3]} 21... Nxc4 {[%clk 0:01:33.6]} 22. Nf5
{[%clk 0:00:39.3]} 22... Ne5 {[%clk 0:01:31.5]} 23. Re1 {[%clk 0:00:29.7]} 23...
h5 {[%clk 0:00:57]} 24. d4 {[%clk 0:00:10.1]} 24... hxg4 {[%clk 0:00:56.5]} 25.
Ne7+ {[%clk 0:00:03.3]} 25... Kb8 {[%clk 0:00:54.6]} 26. dxe5 {[%clk 0:00:03.4]}
26... Bxe5 {[%clk 0:00:54.6]} 27. Rxe5 {[%clk 0:00:01.3]} 27... dxe5 {[%clk
0:00:55.1]} 28. Nc6+ {[%clk 0:00:01.4]} 28... bxc6 {[%clk 0:00:55.2]} 29. dxc6
{[%clk 0:00:02.3]} 29... Qf3+ {[%clk 0:00:55.4]} 30. Qxf3 {[%clk 0:00:02.5]}
30... gxf3+ {[%clk 0:00:56.3]} 0-1

[Event "Early-Titled-Tuesday-Blitz-June-18-2024"]
[Site "Chess.com"]
[Date "2024.06.18"]
[Round "5"]
[White "Eduard_Limonov"]
[Black "djano"]
[Result "1-0"]
[WhiteElo "2937"]
[BlackElo "2641"]
[TimeControl "180+1"]
[EndTime "8:57:08 PDT"]
[Termination "Eduard_Limonov won by resignation"]

1. e4 {[%clk 0:02:59.4]} 1... c5 {[%clk 0:02:59.9]} 2. Nf3 {[%clk 0:02:58.8]}
2... g6 {[%clk 0:03:00.4]} 3. c3 {[%clk 0:02:57.2]} 3... d5 {[%clk 0:02:59.1]}
4. e5 {[%clk 0:02:55.7]} 4... Nc6 {[%clk 0:02:56.4]} 5. d4 {[%clk 0:02:55.6]}
5... Bg4 {[%clk 0:02:56.1]} 6. Be2 {[%clk 0:02:53.8]} 6... Bg7 {[%clk
0:02:51.8]} 7. O-O {[%clk 0:02:53.6]} 7... cxd4 {[%clk 0:02:47.5]} 8. cxd4
{[%clk 0:02:52.9]} 8... f6 {[%clk 0:02:47.8]} 9. Nc3 {[%clk 0:02:51.8]} 9...
fxe5 {[%clk 0:02:41.4]} 10. Nxe5 {[%clk 0:02:47]} 10... Bxe2 {[%clk 0:02:39.4]}
11. Nxc6 {[%clk 0:02:34.6]} 11... bxc6 {[%clk 0:02:20]} 12. Nxe2 {[%clk
0:02:28]} 12... Nf6 {[%clk 0:02:18]} 13. Nf4 {[%clk 0:02:27.5]} 13... Qd6 {[%clk
0:02:12.3]} 14. Re1 {[%clk 0:02:26.7]} 14... O-O {[%clk 0:02:08.6]} 15. Ne6
{[%clk 0:02:26.2]} 15... Rf7 {[%clk 0:02:08.8]} 16. Bf4 {[%clk 0:02:26.6]} 16...
Qb4 {[%clk 0:02:06.7]} 17. Nxg7 {[%clk 0:02:21.9]} 17... Kxg7 {[%clk 0:02:01.9]}
18. Qc2 {[%clk 0:02:21.1]} 18... Rc8 {[%clk 0:01:53]} 19. Be5 {[%clk 0:02:18.4]}
19... Kg8 {[%clk 0:01:49.5]} 20. a3 {[%clk 0:02:17.2]} 20... Qa5 {[%clk
0:01:45.9]} 21. b4 {[%clk 0:02:16.9]} 21... Qb6 {[%clk 0:01:43.2]} 22. Qc5
{[%clk 0:02:06.9]} 22... Ne4 {[%clk 0:01:40.2]} 23. Qxb6 {[%clk 0:02:04.9]}
23... axb6 {[%clk 0:01:41.1]} 24. f3 {[%clk 0:02:04.9]} 24... Nd2 {[%clk
0:01:40.3]} 25. a4 {[%clk 0:02:01.8]} 25... e6 {[%clk 0:01:32.7]} 26. a5 {[%clk
0:01:58.3]} 26... bxa5 {[%clk 0:01:28.5]} 27. bxa5 {[%clk 0:01:59.2]} 27... Ra7
{[%clk 0:01:21.2]} 28. Ra4 {[%clk 0:01:50.7]} 28... Rca8 {[%clk 0:01:09.8]} 29.
Bf4 {[%clk 0:01:50.2]} 29... Nb3 {[%clk 0:00:58.2]} 30. Rxe6 {[%clk 0:01:48.3]}
30... Rxa5 {[%clk 0:00:54.6]} 31. Rb4 {[%clk 0:01:47.9]} 31... Nxd4 {[%clk
0:00:51.5]} 32. Rxd4 {[%clk 0:01:46.2]} 32... Rc5 {[%clk 0:00:45.3]} 33. Re7
{[%clk 0:01:41]} 33... Rc2 {[%clk 0:00:43.5]} 34. Rd2 {[%clk 0:01:39.8]} 34...
Rc4 {[%clk 0:00:40.8]} 35. Be5 {[%clk 0:01:37.8]} 35... Kf8 {[%clk 0:00:13.1]}
36. Rxh7 {[%clk 0:01:37.4]} 36... Re8 {[%clk 0:00:13.2]} 37. f4 {[%clk
0:01:35.5]} 37... Re6 {[%clk 0:00:08.5]} 38. Ra2 {[%clk 0:01:33.9]} 38... Rc1+
{[%clk 0:00:03.4]} 39. Kf2 {[%clk 0:01:33.7]} 39... Re8 {[%clk 0:00:04.3]} 40.
Rh8+ {[%clk 0:01:32.7]} 40... Kf7 {[%clk 0:00:04.5]} 41. Ra7+ {[%clk 0:01:33.3]}
41... Re7 {[%clk 0:00:05]} 42. Rh7+ {[%clk 0:01:33.3]} 42... Ke6 {[%clk
0:00:05]} 43. Raxe7+ {[%clk 0:01:32.9]} 43... Kf5 {[%clk 0:00:05.9]} 44. Bd6
{[%clk 0:01:32.5]} 44... Kg4 {[%clk 0:00:05.7]} 45. h3+ {[%clk 0:01:31.5]} 45...
Kf5 {[%clk 0:00:05.2]} 46. g4+ {[%clk 0:01:31.7]} 1-0

[Event "Early-Titled-Tuesday-Blitz-June-18-2024"]
[Site "Chess.com"]
[Date "2024.06.18"]
[Round "5"]
[White "Dr_Pepper18"]
[Black "Grebnev_A"]
[Result "0-1"]
[WhiteElo "2462"]
[BlackElo "2694"]
[TimeControl "180+1"]
[EndTime "8:57:12 PDT"]
[Termination "Grebnev_A won on time"]

1. d4 {[%clk 0:03:00]} 1... Nf6 {[%clk 0:02:59.7]} 2. c4 {[%clk 0:02:59.4]} 2...
e6 {[%clk 0:02:58.1]} 3. Nf3 {[%clk 0:02:59.9]} 3... d5 {[%clk 0:02:58]} 4. cxd5
{[%clk 0:02:59.3]} 4... exd5 {[%clk 0:02:57.2]} 5. Nc3 {[%clk 0:03:00]} 5... c6
{[%clk 0:02:56.6]} 6. Bg5 {[%clk 0:02:58.4]} 6... Bg4 {[%clk 0:02:56.1]} 7. Qb3
{[%clk 0:02:38.3]} 7... Qb6 {[%clk 0:02:53.4]} 8. Bxf6 {[%clk 0:02:34.6]} 8...
gxf6 {[%clk 0:02:53.5]} 9. e3 {[%clk 0:02:21.9]} 9... Bd6 {[%clk 0:02:51]} 10.
Bd3 {[%clk 0:02:14.7]} 10... Nd7 {[%clk 0:02:48.3]} 11. Qc2 {[%clk 0:02:09.6]}
11... Nf8 {[%clk 0:02:24.4]} 12. Nh4 {[%clk 0:01:54]} 12... Qc7 {[%clk
0:02:17.1]} 13. h3 {[%clk 0:01:51.2]} 13... Be6 {[%clk 0:02:15.7]} 14. Nf5
{[%clk 0:01:10.1]} 14... Bxf5 {[%clk 0:02:15.5]} 15. Bxf5 {[%clk 0:01:11]} 15...
h6 {[%clk 0:02:16.2]} 16. O-O {[%clk 0:01:05.2]} 16... Ne6 {[%clk 0:02:15.2]}
17. Rad1 {[%clk 0:00:57.5]} 17... O-O-O {[%clk 0:02:14.8]} 18. e4 {[%clk
0:00:51.4]} 18... dxe4 {[%clk 0:02:12.6]} 19. Qxe4 {[%clk 0:00:47.4]} 19... Kb8
{[%clk 0:02:00]} 20. Bxe6 {[%clk 0:00:20]} 20... fxe6 {[%clk 0:02:00.9]} 21.
Qxe6 {[%clk 0:00:19.8]} 21... Qg7 {[%clk 0:02:01.5]} 22. Qg4 {[%clk 0:00:17]}
22... Qf7 {[%clk 0:02:01.8]} 23. Qf5 {[%clk 0:00:15.5]} 23... Rhg8 {[%clk
0:02:01.6]} 24. Rfe1 {[%clk 0:00:15.7]} 24... Rg5 {[%clk 0:02:01.4]} 25. Qf3
{[%clk 0:00:15.6]} 25... Rdg8 {[%clk 0:02:00.5]} 26. d5 {[%clk 0:00:12.4]} 26...
Qg7 {[%clk 0:01:57.6]} 27. g4 {[%clk 0:00:11.8]} 27... h5 {[%clk 0:01:56.8]} 28.
dxc6 {[%clk 0:00:11.9]} 28... hxg4 {[%clk 0:01:56.7]} 29. hxg4 {[%clk 0:00:11]}
29... Rxg4+ {[%clk 0:01:57.6]} 30. Kf1 {[%clk 0:00:11.6]} 30... Rg1+ {[%clk
0:01:54]} 31. Ke2 {[%clk 0:00:12]} 31... Re8+ {[%clk 0:01:54.5]} 32. Kd2 {[%clk
0:00:11.2]} 32... Qg5+ {[%clk 0:01:51]} 33. Kc2 {[%clk 0:00:10.3]} 33... Rgxe1
{[%clk 0:01:48.4]} 34. Rxd6 {[%clk 0:00:08.5]} 34... Qc5 {[%clk 0:01:41.5]} 35.
Rxf6 {[%clk 0:00:03.6]} 35... R8e2+ {[%clk 0:01:41.1]} 36. Kb3 {[%clk
0:00:02.4]} 36... Qb6+ {[%clk 0:01:41]} 37. Kc4 {[%clk 0:00:02.8]} 37... Re8
{[%clk 0:01:36.2]} 38. c7+ {[%clk 0:00:02.2]} 38... Qxc7+ {[%clk 0:01:36.3]} 39.
Kb3 {[%clk 0:00:03]} 39... a6 {[%clk 0:01:32.3]} 40. a3 {[%clk 0:00:03]} 40...
R1e6 {[%clk 0:01:30.4]} 41. Rxe6 {[%clk 0:00:02.6]} 41... Rxe6 {[%clk
0:01:31.3]} 42. Qf8+ {[%clk 0:00:02.8]} 42... Ka7 {[%clk 0:01:31.4]} 43. Qf4
{[%clk 0:00:02.2]} 43... Rb6+ {[%clk 0:01:30.8]} 44. Ka2 {[%clk 0:00:02]} 44...
Qxf4 {[%clk 0:01:31]} 0-1